bitfinex/quotes_SOLUSD_20250417
["timestamp","ask_amount","ask_price","bid_price","bid_amount"]
[1744910824226,7.40356852,135.07,135.04,29.44458167]
[1744910824724,7.40356852,135.07,135.05,29.44458167]
[1744910826226,25.91086437,135.08,135.05,29.44458167]
[1744910826411,25.91086437,135.08,135.06,29.44458167]
[1744910826602,25.91086437,135.08,135.05,29.44458167]
[1744910827008,25.91086437,135.08,135.06,29.44458167]
[1744910828226,7.40302043,135.08,135.06,29.44458167]
[1744910828526,7.40302043,135.08,135.07,29.44458167]
[1744910828741,7.40302043,135.08,135.05,29.44458167]
[1744910828939,25.91057151,135.08,135.05,29.44458167]
[1744910829230,48.09423053,135.07,135.03,29.44458167]
[1744910829730,18.64964886,135.07,135.04,29.44458167]
[1744910830126,7.40411668,135.06,135.04,29.44458167]
[1744910830338,7.40411668,135.06,135.01,99.42]
[1744910830535,25.9144084,135.06,135.02,29.44458167]
[1744910831029,7.40411668,135.06,135.05,29.44458167]
[1744910831213,25.90865348,135.09,135.05,29.44458167]
[1744910831414,25.90865348,135.09,135.06,29.44458167]
[1744910831820,25.90865348,135.09,135.05,29.44458167]
[1744910832020,25.90865348,135.09,135.06,29.44458167]
[1744910833434,25.90865348,135.09,135.05,29.44458167]
[1744910833622,55.35323515,135.09,135.05,29.44458167]
[1744910834029,55.35323515,135.09,135.0,84.4081]
[1744910834030,48.09423053,135.06,135.0,84.4081]
[1744910834217,48.09423053,135.04,134.99,29.44458167]
[1744910834414,48.09423053,135.04,134.98,82.9]
[1744910834609,48.09423053,135.04,134.99,29.44458167]
[1744910834809,32.54051296,135.07,135.01,29.44458167]
[1744910835022,18.64964886,135.06,135.02,29.44458167]
[1744910835227,48.09423053,135.06,135.02,29.44458167]
[1744910835731,29.44458167,135.04,135.0,29.44458167]
[1744910836138,25.92016588,135.03,135.0,29.44458167]
[1744910837036,7.40576168,135.03,135.01,29.44458167]
[1744910837237,7.40466493,135.05,135.02,18.408466]
[1744910837451,7.40466493,135.05,135.04,18.408466]
[1744910837622,7.40466493,135.05,135.01,82.9]
[1744910837623,7.40466493,135.05,135.03,18.408466]
[1744910837821,7.40466493,135.05,135.04,18.408466]
[1744910838130,25.91270838,135.07,135.04,18.408466]
[1744910838334,25.91270838,135.07,135.06,18.408466]
[1744910838335,7.40356852,135.07,135.06,18.408466]
[1744910839220,7.40356852,135.07,135.06,29.43957625]
[1744910839934,18.50629693,135.09,135.06,29.43957625]
[1744910842019,18.50629693,135.09,135.05,29.43957625]
[1744910842523,66.59552204,135.09,135.05,29.43957625]
[1744910842933,18.50629693,135.09,135.06,29.43957625]
[1744910843139,18.50629693,135.09,135.03,112.33957625]
[1744910843140,18.50629693,135.09,135.07,29.43957625]
[1744910843339,18.50629693,135.09,135.06,29.43957625]
[1744910843543,18.50629693,135.09,135.05,29.43957625]
[1744910843841,55.3483456,135.09,135.05,29.43957625]
[1744910844214,55.3483456,135.09,135.04,29.43957625]
[1744910844834,18.64964886,135.08,135.04,29.43957625]
[1744910845923,25.91248982,135.07,135.04,29.43957625]
[1744910846539,25.91248982,135.07,135.05,29.43957625]
[1744910848145,18.5089213,135.07,135.05,29.43957625]
[1744910849345,18.5089213,135.07,135.04,29.43957625]
[1744910851534,18.5089213,135.07,135.05,29.43957625]
[1744910851740,7.40302043,135.08,135.06,29.43957625]
[1744910851950,7.40302043,135.08,135.07,29.43957625]
[1744910852138,7.40302043,135.08,135.06,29.43957625]
[1744910852445,25.91057151,135.08,135.05,29.43957625]
[1744910852953,25.91057151,135.08,135.06,29.43957625]
[1744910853129,18.50755108,135.08,135.06,29.43957625]
[1744910854833,7.40247242,135.09,135.07,29.43957625]
[1744910855348,25.93685481,135.1,135.06,29.43957625]
[1744910856046,25.93685481,135.1,135.08,29.43957625]
[1744910857154,25.93685481,135.1,135.09,29.43957625]
[1744910857341,18.53493031,135.1,135.09,29.43957625]
[1744910858155,0.03,135.1,135.09,29.43957625]
[1744910858850,0.03,135.1,135.08,29.43957625]
[1744910861146,0.03,135.1,135.08,18.39750592]
[1744910861750,18.64964886,135.08,135.01,100.9829]
[1744910861932,18.39750592,135.07,135.03,18.39750592]
[1744910862461,18.64964886,135.08,135.03,18.39750592]
[1744910862462,37.04715478,135.08,135.03,18.39750592]
[1744910862634,37.04715478,135.08,135.04,18.39750592]
[1744910862830,37.04715478,135.08,135.03,18.39750592]
[1744910863550,18.39750592,135.05,135.01,18.39750592]
[1744910864046,18.64964886,135.04,135.01,18.39750592]
[1744910864235,18.39750592,135.04,135.0,18.39750592]
[1744910864436,18.64964886,135.04,135.0,18.39750592]
[1744910864643,18.64964886,135.05,135.01,18.39750592]
[1744910864946,25.91248982,135.07,135.04,18.39750592]
[1744910865144,25.91248982,135.07,135.05,18.39750592]
[1744910865559,18.5089213,135.07,135.05,18.39750592]
[1744910865861,18.5089213,135.07,135.04,18.39750592]
[1744910866047,18.5089213,135.07,135.03,18.39750592]
[1744910867039,18.64964886,135.06,135.02,18.39750592]
[1744910867561,7.40466493,135.05,135.02,18.39750592]
[1744910867858,44.31383319,135.05,135.01,18.39750592]
[1744910868048,25.91632727,135.05,135.02,18.39750592]
[1744910868449,25.91632727,135.05,135.03,18.39750592]
[1744910869440,7.40466493,135.05,135.03,18.39750592]
[1744910869639,25.91257451,135.07,135.03,18.39750592]
[1744910870666,18.64964886,135.06,135.02,18.39750592]
[1744910870961,44.31008043,135.07,135.03,18.39750592]
[1744910871161,25.91257451,135.07,135.05,18.39750592]
[1744910871855,18.50900599,135.07,135.03,18.39750592]
[1744910872363,36.90651191,135.07,135.03,18.39750592]
[1744910872543,36.90651191,135.07,135.02,18.39750592]
[1744910872744,36.90651191,135.07,135.03,18.39750592]
[1744910873163,44.31008043,135.07,135.02,18.39750592]
[1744910873359,44.31008043,135.07,135.03,18.39750592]
[1744910875561,25.91257451,135.07,135.04,18.39750592]
[1744910876651,7.40302043,135.08,135.05,18.39750592]
[1744910877051,25.91057151,135.08,135.06,18.39750592]
[1744910877865,51.91057151,135.08,135.06,18.39750592]
[1744910878569,33.40302043,135.08,135.06,18.39750592]
[1744910879171,33.40302043,135.08,135.05,18.39750592]
[1744910879568,33.40302043,135.08,135.06,18.39750592]
[1744910879880,51.91057151,135.08,135.05,18.39750592]
[1744910880079,51.91057151,135.08,135.06,18.39750592]
[1744910880280,51.91057151,135.08,135.05,18.39750592]
[1744910881378,51.91057151,135.08,135.06,18.39750592]
[1744910882752,51.91057151,135.08,135.03,82.9]
[1744910882753,7.40287887,135.09,135.07,18.39750592]
[1744910882981,7.40287887,135.09,135.08,18.39750592]
[1744910884276,7.40287887,135.09,135.06,18.39750592]
[1744910884478,25.90905993,135.09,135.06,18.39750592]
[1744910884686,37.04715478,135.08,135.02,18.0693]
[1744910884866,26.0,135.07,135.03,18.39750592]
[1744910885180,26.0,135.07,135.04,18.39750592]
[1744910885679,7.40411668,135.06,135.04,18.39750592]
[1744910888370,7.40411668,135.06,135.05,18.39750592]
[1744910889570,7.40368088,135.07,135.05,18.39750592]
[1744910889774,0.03,135.1,135.06,18.39750592]
[1744910889957,26.03,135.1,135.07,18.39750592]
[1744910891052,7.40247242,135.09,135.07,18.39750592]
[1744910892864,7.40247242,135.09,135.04,0.14216157]
[1744910893061,7.40247242,135.09,135.07,18.39750592]
[1744910893262,7.40247242,135.09,135.08,18.39750592]
[1744910894364,33.43219093,135.1,135.08,18.39750592]
[1744910894560,33.43219093,135.1,135.07,18.39750592]
[1744910894761,33.43219093,135.1,135.08,18.39750592]
[1744910895259,33.43219093,135.1,135.07,18.39750592]
[1744910895962,7.43219093,135.1,135.09,18.39750592]
[1744910897177,0.03,135.1,135.09,18.39750592]
[1744910897362,0.03,135.1,135.08,18.39750592]
[1744910899767,0.03,135.1,135.07,18.39750592]
[1744910901080,0.03,135.1,135.06,18.39750592]
[1744910901278,18.39750592,135.09,135.05,18.39750592]
[1744910901465,37.04715478,135.07,135.04,82.9]
[1744910901664,37.04715478,135.07,135.02,18.39750592]
[1744910901884,18.39750592,135.06,135.02,18.39750592]
[1744910902080,37.04715478,135.07,135.03,18.39750592]
[1744910902278,18.39750592,135.08,135.04,18.39750592]
[1744910902583,44.39750592,135.09,135.04,18.39750592]
[1744910902963,44.39750592,135.09,135.05,18.39750592]
[1744910903182,7.40302043,135.08,135.05,18.39750592]
[1744910903981,25.91057151,135.08,135.05,18.39750592]
[1744910904369,25.91057151,135.08,135.06,18.39750592]
[1744910905364,7.40302043,135.08,135.06,18.39750592]
[1744910905781,7.40302043,135.08,135.05,18.39750592]
[1744910905985,7.40302043,135.08,135.06,18.39750592]
[1744910906389,7.40302043,135.08,135.05,18.39750592]
[1744910906586,44.30807743,135.08,135.01,82.9]
[1744910906792,44.30807743,135.08,135.03,18.39750592]
[1744910906983,44.30807743,135.08,135.04,18.39750592]
[1744910906984,25.91057151,135.08,135.04,18.39750592]
[1744910908894,44.30807743,135.08,135.01,82.9]
[1744910909074,44.30807743,135.08,135.03,18.39750592]
[1744910909271,25.91057151,135.08,135.04,18.39750592]
[1744910909494,25.91057151,135.08,135.05,18.39750592]
[1744910910896,44.30807743,135.08,135.04,18.39750592]
[1744910911204,25.91057151,135.08,135.04,11.78189745]
[1744910911384,25.91057151,135.08,135.05,11.78189745]
[1744910911996,7.40302043,135.08,135.05,11.78189745]
[1744910913271,7.40302043,135.08,135.06,11.78189745]
[1744910913572,7.40302043,135.08,135.05,11.78189745]
[1744910913981,25.91057151,135.08,135.05,11.78189745]
[1744910916774,7.40302043,135.08,135.06,11.78189745]
[1744910917173,7.40269806,135.09,135.07,11.78189745]
[1744910917393,0.03,135.1,135.03,47.1275898]
[1744910917394,0.03,135.1,135.08,11.78189745]
[1744910917707,7.4319245,135.1,135.09,11.78189745]
[1744910918397,0.03,135.1,135.09,11.78189745]
[1744910919570,0.03,135.1,135.09,94.68189745]
[1744910919991,0.03,135.1,135.09,94.82405902]
[1744910920894,0.03,135.1,135.09,149.63844438]
[1744910921287,0.03,135.1,135.09,151.30084438]
[1744910921594,0.03,135.13,135.1,0.42648471]
[1744910921782,0.03,135.13,135.12,11.92405902]
[1744910922195,0.03,135.13,135.12,95.10838216]
[1744910922405,0.03,135.14,135.12,102.50881273]
[1744910922702,0.03,135.14,135.13,11.78189745]
[1744910922998,0.03,135.14,135.13,94.68189745]
[1744910923298,0.03,135.14,135.13,101.27166998]
[1744910923983,0.03,135.14,135.13,108.67195119]
[1744910925599,0.03,135.14,135.13,109.0984359]
[1744910925981,0.03,135.14,135.13,110.7185359]
[1744910926679,44.52062784,135.21,135.18,26.14216157]
[1744910926680,0.03,135.21,135.18,26.14216157]
[1744910926882,0.03,135.21,135.18,101.41383155]
[1744910927598,7.42600394,135.21,135.18,101.41383155]
[1744910927979,0.03,135.21,135.18,101.41383155]
[1744910928501,0.03,135.21,135.18,101.27166998]
[1744910928708,0.03,135.21,135.18,18.37166998]
[1744910931182,0.03,135.21,135.15,109.04216157]
[1744910931386,0.03,135.21,135.17,18.37166998]
[1744910932310,18.37166998,135.2,135.16,18.37166998]
[1744910932811,26.87594886,135.21,135.16,18.37166998]
[1744910933010,45.24761884,135.21,135.17,18.37166998]
[1744910933799,0.03,135.21,135.18,18.37166998]
[1744910938203,44.67964886,135.21,135.13,84.5201]
[1744910938396,26.03,135.21,135.17,18.37166998]
[1744910938705,44.40166998,135.21,135.17,18.37166998]
[1744910939300,44.40166998,135.21,135.13,84.5201]
[1744910939301,18.64964886,135.2,135.16,18.37166998]
[1744910940190,18.64964886,135.2,135.13,101.27166998]
[1744910940191,18.37166998,135.17,135.13,101.27166998]
[1744910940400,37.02131884,135.15,135.08,88.26652421]
[1744910940594,18.37166998,135.13,135.09,18.37166998]
[1744910940796,18.37166998,135.12,135.08,105.05199419]
[1744910940996,18.37166998,135.12,135.07,18.37166998]
[1744910941210,37.02131884,135.11,135.07,18.37166998]
[1744910941585,18.37166998,135.12,135.08,18.37166998]
[1744910942109,18.37166998,135.12,135.06,0.14216157]
[1744910942307,7.40137665,135.11,135.09,18.37166998]
[1744910942890,7.40137665,135.11,135.08,18.37166998]
[1744910943106,44.27648827,135.11,135.07,18.37166998]
[1744910943599,25.90481829,135.11,135.07,18.37166998]
[1744910943909,51.90481829,135.11,135.07,18.37166998]
[1744910944110,70.27648827,135.11,135.06,18.37166998]
[1744910944308,37.02131884,135.09,135.05,18.37166998]
[1744910944506,18.37166998,135.07,135.03,18.37166998]
[1744910944704,18.37166998,135.09,135.04,18.37166998]
[1744910945206,18.64964886,135.07,135.03,18.37166998]
[1744910945399,18.64964886,135.07,135.04,18.37166998]
[1744910945704,18.37166998,135.08,135.04,18.37166998]
[1744910945915,44.37166998,135.08,135.04,18.37166998]
[1744910946407,7.40356852,135.07,135.04,18.37166998]
[1744910946994,7.40356852,135.07,135.05,18.37166998]
[1744910948113,7.40356852,135.07,135.06,18.37166998]
[1744910948303,7.40356852,135.07,135.02,0.20516157]
[1744910948507,7.40356852,135.07,135.05,18.37166998]
[1744910948706,33.4019245,135.1,135.06,18.37166998]
[1744910948905,33.4019245,135.1,135.07,18.37166998]
[1744910949897,51.90673575,135.1,135.07,18.37166998]
[1744910950103,51.90673575,135.1,135.06,18.37166998]
[1744910950904,7.40082889,135.12,135.09,18.37166998]
[1744910951212,7.40082889,135.12,135.11,18.37166998]
[1744910951414,7.39863865,135.16,135.11,18.37166998]
[1744910951610,33.39863865,135.16,135.14,18.37166998]
[1744910951823,7.39863865,135.16,135.15,18.37166998]
[1744910953418,7.39863865,135.16,135.14,18.37166998]
[1744910953921,7.39863865,135.16,135.15,18.37166998]
[1744910954109,7.39863865,135.16,135.14,18.37166998]
[1744910955003,7.39863865,135.16,135.1,82.9]
[1744910955213,18.64964886,135.13,135.07,82.9]
[1744910955517,18.37166998,135.09,135.05,18.37166998]
[1744910956616,18.37166998,135.09,135.04,18.37166998]
[1744910957009,7.40302043,135.08,135.04,18.37166998]
[1744910957804,7.40302043,135.08,135.05,18.37166998]
[1744910958017,7.40302043,135.08,135.04,18.37166998]
[1744910958228,18.37166998,135.08,135.04,18.37166998]
[1744910958519,18.37166998,135.07,135.0,108.9]
[1744910958700,18.37166998,135.06,135.02,18.43466998]
[1744910958910,18.37166998,135.06,135.02,0.063]
[1744910959313,18.37166998,135.06,135.02,18.43466998]
[1744910959625,63.02131884,135.08,135.04,18.37166998]
[1744910959923,18.37166998,135.07,135.02,18.43466998]
[1744910960335,25.9144084,135.06,135.02,18.43466998]
[1744910960714,44.28607838,135.06,135.02,18.43466998]
[1744910961421,25.9144084,135.06,135.02,18.43466998]
[1744910961907,44.28607838,135.06,135.02,18.43466998]
[1744910962220,25.77743166,135.03,135.02,0.063]
[1744910962827,7.40576168,135.03,135.02,0.063]
[1744910964319,25.77688325,135.04,135.02,0.063]
[1744910965516,18.64964886,135.03,135.02,0.063]
[1744910965909,37.02131884,135.03,135.02,1e-08]
[1744910966104,37.30564198,135.03,135.02,1e-08]
[1744910966529,63.22523521,135.03,135.02,1e-08]
[1744910966912,44.85356523,135.03,135.02,1e-08]
[1744910967327,63.22523521,135.03,135.02,1e-08]
[1744910967524,18.64964886,134.99,134.94,101.27166998]
[1744910967709,18.37166998,134.98,134.94,18.37166998]
[1744910967912,18.37166998,134.98,134.93,18.37166998]
[1744910968122,18.37166998,134.97,134.93,18.37166998]
[1744910968322,18.64964886,134.97,134.96,0.063]
[1744910968628,7.40850496,134.98,134.96,0.063]
[1744910969126,25.78017494,134.98,134.96,0.063]
[1744910969426,7.40850496,134.98,134.95,18.37166998]
[1744910969727,7.40850496,134.98,134.97,18.37166998]
[1744910970306,7.4074074,135.0,134.97,18.37166998]
[1744910970532,25.9223567,135.02,134.99,18.37166998]
[1744910970729,25.9223567,135.02,134.98,18.37166998]
[1744910971728,18.64964886,135.01,134.93,41.53895515]
[1744910971925,25.9223567,135.02,134.99,18.37166998]
[1744910972137,18.64964886,135.01,134.98,18.37166998]
[1744910972712,7.4074074,135.0,134.98,18.37166998]
[1744910972924,6.625,135.08,134.99,18.37166998]
[1744910973126,6.625,135.08,135.05,18.37166998]
[1744910973127,7.40356852,135.07,135.05,18.37166998]
[1744910973414,51.91259274,135.07,135.05,18.37166998]
[1744910974407,7.40356852,135.07,135.05,18.37166998]
[1744910974619,7.40356852,135.07,135.06,18.37166998]
[1744910975033,7.40356852,135.07,135.05,18.37166998]
[1744910975337,7.40356852,135.07,135.05,29.4459219]
[1744910975529,7.40302043,135.08,135.05,29.4459219]
[1744910979243,25.91057151,135.08,135.04,29.4459219]
[1744910979737,48.09557076,135.07,135.03,29.4459219]
[1744910980330,48.09557076,135.07,135.02,29.4459219]
[1744910980529,29.4459219,135.05,135.0,1.6195]
[1744910980718,29.4459219,135.05,135.0,29.4459219]
[1744910980913,7.40521327,135.04,135.01,29.4459219]
[1744910981117,36.85113517,135.04,134.98,90.30838436]
[1744910981437,36.85113517,135.04,135.0,29.4459219]
[1744910981627,7.40521327,135.04,135.0,29.4459219]
[1744910982023,55.36416834,135.04,134.99,29.4459219]
[1744910982342,29.4459219,135.03,134.99,29.4459219]
[1744910983026,18.51303317,135.04,134.99,29.4459219]
[1744910983227,29.4459219,135.03,134.99,29.4459219]
[1744910983423,29.4459219,135.01,134.96,99.36]
[1744910983630,29.4459219,135.02,134.97,29.4459219]
[1744910983936,55.4459219,135.03,134.98,29.4459219]
[1744910984134,29.4459219,135.02,134.98,29.4459219]
[1744910984534,55.4459219,135.03,134.98,29.4459219]
[1744910985118,7.40631017,135.02,134.98,29.4459219]
[1744910986437,36.85223207,135.02,134.98,29.4459219]
[1744910986633,36.85223207,135.02,134.97,29.4459219]
[1744910986833,29.4459219,135.01,134.97,29.4459219]
[1744910987025,7.4074074,135.0,134.97,29.4459219]
[1744910987721,36.8533293,135.0,134.96,99.36]
[1744910987926,29.4459219,134.99,134.96,82.9]
[1744910988136,25.92592591,135.0,134.96,112.3459219]
[1744910988344,25.92592591,135.0,134.97,29.4459219]
[1744910989239,18.51851851,135.0,134.97,29.4459219]
[1744910989444,7.40685875,135.01,134.97,29.4459219]
[1744910989840,7.40685875,135.01,134.98,29.4459219]
[1744910990846,7.40685875,135.01,134.99,29.4459219]
[1744910991344,18.51688847,135.02,134.98,29.4459219]
[1744910991345,25.92319864,135.02,134.98,29.4459219]
[1744910991543,55.36912054,135.02,134.98,29.4459219]
[1744910992248,25.92319864,135.02,134.98,29.4459219]
[1744910992956,33.40596248,135.03,135.0,29.4459219]
[1744910993448,33.40596248,135.03,134.99,29.4459219]
[1744910993634,33.40596248,135.03,135.0,29.4459219]
[1744910994440,51.92036668,135.03,135.0,29.4459219]
[1744910994647,81.36628858,135.03,134.99,29.4459219]
[1744910994822,51.92036668,135.03,134.99,29.4459219]
[1744910995026,81.36628858,135.03,134.99,29.4459219]
[1744910995324,70.3405325,135.03,134.99,18.42016582]
[1744910995840,37.06981468,135.02,134.96,83.04216157]
[1744910996046,18.42016582,135.01,134.96,101.32016582]
[1744910996227,18.42016582,135.01,134.97,18.42016582]
[1744910996935,18.42016582,135.01,134.96,82.9]
[1744910997130,18.64964886,135.02,134.96,100.69216582]
[1744910997131,18.42016582,135.0,134.96,100.69216582]
[1744910997323,18.42016582,135.0,134.96,18.42016582]
[1744910997527,7.40795614,134.99,134.96,18.42016582]
[1744910997729,44.34801232,134.99,134.92,18.0645]
[1744910997930,44.34801232,134.99,134.94,18.42016582]
[1744910998131,7.40631017,135.02,134.96,18.42016582]
[1744910998324,25.82647599,135.02,134.96,82.272]
[1744910998547,25.82647599,135.02,134.97,18.42016582]
[1744910999144,44.34225143,135.02,134.97,18.42016582]
[1744911000326,25.92208561,135.02,134.99,18.42016582]
[1744911000526,7.40631017,135.02,134.99,18.42016582]
[1744911000732,7.40631017,135.02,135.0,18.42016582]
[1744911001752,7.40631017,135.02,134.97,0.14216157]
[1744911001753,7.40631017,135.02,134.99,18.42016582]
[1744911002153,7.40631017,135.02,134.97,0.14216157]
[1744911002451,44.34225143,135.02,134.98,18.42016582]
[1744911002768,44.34225143,135.02,134.97,18.42016582]
[1744911003063,44.34225143,135.02,134.98,18.42016582]
[1744911004354,7.40631017,135.02,134.99,18.42016582]
[1744911004529,7.40631017,135.02,134.97,0.14216157]
[1744911004742,25.82647599,135.02,134.97,18.56232739]
[1744911004936,7.40631017,135.02,134.98,18.42016582]
[1744911005136,7.40631017,135.02,134.99,18.42016582]
[1744911006667,7.40631017,135.02,135.0,18.42016582]
[1744911007034,7.40631017,135.02,134.99,18.42016582]
[1744911007993,7.40604551,135.03,135.01,18.42016582]
[1744911008135,7.40362436,135.07,135.03,0.14216157]
[1744911008455,0.03,135.08,135.06,18.42016582]
[1744911008642,0.03,135.08,135.07,18.42016582]
[1744911009052,0.03,135.08,135.06,18.42016582]
[1744911009262,0.03,135.08,135.07,18.56232739]
[1744911009554,0.03,135.14,135.07,117.39648896]
[1744911009732,7.40029273,135.13,135.07,98.97632314]
[1744911009940,7.40029273,135.13,135.11,18.42016582]
[1744911010459,0.03,135.14,135.11,18.42016582]
[1744911010632,0.03,135.14,135.13,18.42016582]
[1744911012861,0.03,135.14,135.13,18.56232739]
[1744911016961,0.03,135.14,135.12,98.692]
[1744911017259,0.03,135.14,135.13,18.42016582]
[1744911018955,0.03,135.14,135.12,98.692]
[1744911019155,0.03,135.14,135.13,18.42016582]
[1744911021786,0.03,135.14,135.13,18.56232739]
[1744911022288,0.03,135.14,135.13,108.2346086]
[1744911024883,0.03,135.14,135.13,109.7997086]
[1744911025382,0.03,135.14,135.13,102.39942739]
[1744911025584,0.03,135.14,135.13,82.41416157]
[1744911025791,0.03,135.14,135.13,100.83432739]
[1744911026003,0.03,135.14,135.13,18.42016582]
[1744911027370,0.03,135.14,135.13,18.56232739]
[1744911027777,0.03,135.14,135.13,18.42016582]
[1744911028788,0.03,135.14,135.13,18.56232739]
[1744911031183,0.03,135.14,135.13,100.83432739]
[1744911032587,0.03,135.14,135.13,100.69216582]
[1744911032794,0.03,135.14,135.13,82.272]
[1744911033189,0.03,135.14,135.13,100.69216582]
[1744911033496,0.03,135.14,135.13,82.272]
[1744911033695,0.03,135.14,135.13,100.69216582]
[1744911033907,0.03,135.14,135.13,18.42016582]
[1744911034698,0.03,135.14,135.12,16.4]
[1744911034885,0.03,135.14,135.13,18.42016582]
[1744911036284,0.03,135.14,135.13,18.56232739]
[1744911036893,0.03,135.14,135.13,18.42016582]
[1744911037086,0.03,135.14,135.13,108.2346086]
[1744911037286,0.03,135.16,135.15,18.42016582]
[1744911039292,0.03,135.16,135.15,18.56232739]
[1744911039697,0.03,135.19,135.16,0.14216157]
[1744911039907,0.03,135.19,135.18,25.81770983]
[1744911040111,0.03,135.19,135.18,108.08970983]
[1744911042089,0.03,135.19,135.18,108.51619454]
[1744911042289,0.03,135.19,135.18,108.2318714]
[1744911042697,0.03,135.19,135.18,108.51619454]
[1744911043275,0.03,135.19,135.18,147.1658434]
[1744911044210,30.0,135.33,135.23,20.0]
[1744911044515,30.0,135.33,135.3,0.42648471]
[1744911044710,7.38643508,135.39,135.3,0.42648471]
[1744911044711,7.38643508,135.39,135.38,18.42016582]
[1744911045086,51.8066009,135.39,135.31,16.38]
[1744911045286,33.38643508,135.39,135.35,18.42016582]
[1744911045713,36.61200908,135.39,135.35,18.42016582]
[1744911045890,9.61200908,135.39,135.38,18.42016582]
[1744911046088,9.61200908,135.39,135.36,18.42016582]
[1744911046288,18.64964886,135.37,135.3,230.6]
[1744911046609,18.64964886,135.38,135.35,18.42016582]
[1744911047192,18.64964886,135.38,135.35,29.31671596]
[1744911048289,7.38716111,135.37,135.34,29.31671596]
[1744911048490,7.38716111,135.37,135.3,230.6]
[1744911048803,55.17177985,135.37,135.32,29.31671596]
[1744911049507,7.38716111,135.37,135.35,29.31671596]
[1744911049808,7.38716111,135.37,135.34,29.31671596]
[1744911050390,7.38716111,135.37,135.35,29.31671596]
[1744911050711,7.38716111,135.37,135.32,82.272]
[1744911050712,7.38716111,135.37,135.34,29.31671596]
[1744911051300,7.38716111,135.37,135.36,29.31671596]
[1744911051492,7.38716111,135.37,135.32,82.272]
[1744911051699,7.38716111,135.37,135.35,29.31671596]
[1744911052489,7.38716111,135.37,135.32,82.272]
[1744911052692,7.38716111,135.37,135.35,29.31671596]
[1744911053094,7.38716111,135.37,135.34,29.31671596]
[1744911053701,7.38716111,135.37,135.35,29.31671596]
[1744911054403,7.38716111,135.37,135.34,29.31671596]
[1744911054918,18.64964886,135.36,135.34,29.31671596]
[1744911055294,7.38825267,135.35,135.34,29.31671596]
[1744911055497,7.38825267,135.35,135.3,230.6]
[1744911055498,18.64964886,135.34,135.3,230.6]
[1744911055702,47.96636482,135.31,135.27,29.37971596]
[1744911055901,29.31671596,135.29,135.27,0.063]
[1744911056514,18.64964886,135.28,135.27,0.063]
[1744911056707,48.25068796,135.28,135.27,0.063]
[1744911056913,26.0,135.25,135.19,16.38]
[1744911057099,18.64964886,135.21,135.16,230.44]
[1744911057294,7.3964497,135.2,135.16,29.31671596]
[1744911057518,18.64964886,135.18,135.14,29.31671596]
[1744911057814,36.71316566,135.2,135.15,29.31671596]
[1744911058115,18.64964886,135.19,135.16,29.31671596]
[1744911058619,18.64964886,135.19,135.15,29.31671596]
[1744911059326,18.64964886,135.17,135.13,29.31671596]
[1744911059499,7.39863865,135.16,135.15,29.31671596]
[1744911060202,7.39754401,135.18,135.15,29.31671596]
[1744911060416,7.39754401,135.18,135.17,29.31671596]
[1744911060717,0.7165026,135.18,135.17,29.31671596]
[1744911060919,0.7165026,135.18,135.17,58.63343192]
[1744911061118,0.7165026,135.18,135.17,29.31671596]
[1744911061324,0.7165026,135.18,135.17,58.63343192]
[1744911061627,7.39262216,135.27,135.2,26.0]
[1744911061917,7.3915293,135.29,135.26,29.31671596]
[1744911062124,7.3915293,135.29,135.27,29.31671596]
[1744911062331,25.87035256,135.29,135.26,29.31671596]
[1744911062513,18.64964886,135.28,135.26,29.31671596]
[1744911062713,18.64964886,135.28,135.21,98.652]
[1744911063015,18.64964886,135.28,135.25,29.31671596]
[1744911063198,7.39262216,135.27,135.25,29.31671596]
[1744911064015,7.39262216,135.27,135.26,29.31671596]
[1744911064216,26.04117816,135.29,135.26,29.31671596]
[1744911064518,7.3915293,135.29,135.27,29.31671596]
[1744911064919,7.3915293,135.29,135.26,29.31671596]
[1744911065222,7.3915293,135.29,135.27,29.31671596]
[1744911066221,9.90027324,135.3,135.28,29.31671596]
[1744911066423,9.90027324,135.3,135.29,29.31671596]
[1744911068303,9.90027324,135.3,135.28,29.31671596]
[1744911068498,9.90027324,135.3,135.29,29.31671596]
[1744911068717,2.5090714,135.3,135.29,29.31671596]
[1744911069820,2.5090714,135.3,135.29,111.73087753]
[1744911070035,7.38803533,135.36,135.29,174.43912279]
[1744911070240,7.38803533,135.36,135.35,29.31671596]
[1744911070929,7.38803533,135.36,135.34,29.31671596]
[1744911071224,18.64964886,135.36,135.32,29.31671596]
[1744911071427,18.64964886,135.36,135.31,16.36]
[1744911071725,29.31671596,135.35,135.31,45.67671596]
[1744911071909,29.31671596,135.35,135.31,29.31671596]
[1744911072307,47.96636482,135.34,135.29,29.31671596]
[1744911073007,29.31671596,135.33,135.28,29.31671596]
[1744911073203,7.38989062,135.32,135.27,98.632]